bitfinex/quotes_ETHUSD_20250424
["timestamp","ask_amount","ask_price","bid_price","bid_amount"]
[1745521626390,0.8034,1759.3,1758.7,11.46286491]
[1745521626716,0.8034,1759.3,1758.8,6.83195773]
[1745521628118,0.8034,1759.3,1758.8,1.14628649]
[1745521629219,0.8034,1759.3,1758.8,6.83197936]
[1745521629413,0.8034,1759.3,1758.8,1.14628649]
[1745521629583,0.8034,1759.3,1758.8,6.83175147]
[1745521629788,0.8034,1759.3,1758.9,0.68317515]
[1745521630392,0.8034,1759.3,1758.9,6.3684101]
[1745521630789,0.31786792,1759.4,1759.0,1.85186337]
[1745521630987,0.31786792,1759.4,1759.1,10.68649435]
[1745521631199,1.05958538,1759.6,1759.2,5.68429455]
[1745521631587,1.05958538,1759.6,1759.3,5.68397527]
[1745521631797,0.7631,1759.6,1759.3,0.8182]
[1745521632106,0.7631,1759.6,1759.2,7.3157581]
[1745521632275,0.7631,1759.6,1759.3,5.68406375]
[1745521632679,1.08738277,1759.8,1759.3,5.68406375]
[1745521632880,0.31703015,1759.7,1759.3,12.66766836]
[1745521633180,0.31703015,1759.7,1759.3,1.29997184]
[1745521633381,0.7785,1759.6,1759.1,4.945]
[1745521633610,0.31703015,1759.7,1759.2,6.49657341]
[1745521633807,1.09553015,1759.6,1759.1,4.945]
[1745521634006,1.09553015,1759.6,1759.1,10.6296931]
[1745521634422,1.09553015,1759.6,1759.1,4.945]
[1745521634620,0.7785,1759.6,1759.1,4.945]
[1745521635131,0.7785,1759.6,1759.1,10.62963061]
[1745521635346,0.7785,1759.6,1759.1,16.31415151]
[1745521635518,1.09553015,1759.6,1759.1,18.13253472]
[1745521635709,1.09553015,1759.6,1759.2,5.68429836]
[1745521635911,1.09553015,1759.6,1759.1,12.44798109]
[1745521636522,0.7785,1759.6,1759.1,12.44798109]
[1745521637430,1.09553015,1759.6,1759.1,12.44798109]
[1745521638030,0.7785,1759.6,1759.1,12.44798109]
[1745521638738,0.8239,1759.6,1759.1,4.945]
[1745521639399,0.8239,1759.6,1759.1,5.7769]
[1745521639602,0.8239,1759.6,1759.1,10.62952203]
[1745521639796,0.29648277,1759.8,1759.1,16.31407828]
[1745521640010,1.10668277,1759.8,1759.2,6.47375064]
[1745521640330,1.10668277,1759.8,1759.3,0.64737506]
[1745521641434,1.10668277,1759.8,1759.3,6.33135191]
[1745521642324,1.10668277,1759.8,1759.3,6.38812017]
[1745521642535,1.10668277,1759.8,1759.4,5.68372666]
[1745521642720,0.8102,1759.8,1759.5,4.945]
[1745521642945,0.8102,1759.8,1759.5,6.00787267]
[1745521643259,0.8102,1759.8,1759.5,4.945]
[1745521644541,0.8102,1759.8,1759.5,10.62829522]
[1745521645067,0.8102,1759.8,1759.5,10.62828886]
[1745521645386,1.12286519,1760.0,1759.5,11.37878886]
[1745521646931,1.12286519,1760.0,1759.5,5.6955]
[1745521647126,0.7904,1759.7,1759.5,4.945]
[1745521648372,0.7904,1759.6,1759.5,4.945]
[1745521649385,3.7904,1759.6,1759.5,4.945]
[1745521649594,3.7804,1759.6,1759.5,4.945]
[1745521649893,0.7804,1759.4,1759.2,4.944]
[1745521650094,0.8085,1759.2,1759.0,4.944]
[1745521650262,0.8085,1759.2,1758.9,4.944]
[1745521651781,1.1254814,1759.2,1758.9,4.944]
[1745521652551,1.1254814,1759.2,1758.9,5.4384]
[1745521652751,0.8085,1759.2,1758.9,5.4384]
[1745521656494,1.1253814,1759.4,1758.9,11.90474217]
[1745521657096,1.1253814,1759.4,1758.9,11.9047683]
[1745521658405,1.42187554,1759.4,1758.9,11.9047683]
[1745521658608,1.42187554,1759.4,1759.0,1.19047683]
[1745521661099,0.3169814,1759.3,1759.0,1.19047683]
[1745521661871,1.42187554,1759.4,1759.0,1.19047683]
[1745521665910,1.42187554,1759.4,1758.9,4.944]
[1745521666098,0.3169814,1759.3,1758.9,4.944]
[1745521666285,0.3169814,1759.3,1758.9,5.7639]
[1745521666695,0.3169814,1759.3,1758.9,5.82074809]
[1745521667008,1.42187554,1759.4,1758.9,5.7639]
[1745521667202,1.97220943,1759.4,1758.9,5.7639]
[1745521667717,0.3169814,1759.3,1758.9,5.7639]
[1745521668212,0.3169814,1759.3,1758.9,5.82074735]
[1745521669011,0.3169814,1759.3,1758.9,11.50605026]
[1745521669312,0.3169814,1759.3,1758.9,5.7639]
[1745521669518,0.3169814,1759.3,1758.9,7.47739331]
[1745521670716,0.3169814,1759.3,1758.9,5.7639]
[1745521672692,0.3169814,1759.3,1758.9,5.82074722]
[1745521672994,0.3169814,1759.3,1758.9,5.7639]
[1745521674483,0.3169814,1759.3,1758.9,11.44917695]
[1745521675488,0.3169814,1759.3,1758.9,5.7639]
[1745521675688,0.3169814,1759.3,1758.9,6.90883662]
[1745521675883,0.3169814,1759.2,1758.9,6.90883662]
[1745521676694,1.10489414,1759.4,1758.9,6.90883662]
[1745521677021,1.10489414,1759.4,1759.0,4.945]
[1745521677515,0.31777659,1759.3,1759.0,4.945]
[1745521678182,0.7643,1759.2,1759.0,4.945]
[1745521678612,0.31777659,1759.1,1759.0,4.945]
[1745521680529,0.31777659,1759.1,1759.0,5.7704]
[1745521680695,0.31777659,1759.1,1759.0,6.2649]
[1745521681739,0.31777659,1759.1,1759.0,5.7704]
[1745521685932,0.31777659,1759.1,1759.0,11.45544832]
[1745521686233,0.31777659,1759.4,1759.0,11.45544832]
[1745521686427,0.31777659,1759.4,1759.0,5.7704]
[1745521686833,0.31777659,1759.4,1759.1,0.83334548]
[1745521687034,0.31777659,1759.4,1759.3,6.46057889]
[1745521687233,0.31777659,1759.4,1759.3,7.73189967]
[1745521687441,0.31777659,1759.4,1759.3,7.67506507]
[1745521687634,0.31777659,1759.4,1759.3,1.99098618]
[1745521687941,0.31777659,1759.4,1759.0,5.7215]
[1745521688235,1.09657659,1759.3,1759.0,4.945]
[1745521689203,0.31777659,1759.2,1759.0,4.945]
[1745521690104,0.31777659,1759.1,1759.0,4.945]
[1745521691199,0.31777659,1759.2,1759.0,4.945]
[1745521691405,0.31777659,1759.2,1759.1,6.47162514]
[1745521692020,0.31777659,1759.6,1759.1,0.7869]
[1745521692510,0.31777659,1759.6,1759.1,6.47147114]
[1745521692705,0.31777659,1759.5,1759.1,12.15598035]
[1745521692944,0.31777659,1759.5,1759.1,6.47140921]
[1745521693246,0.31777659,1759.5,1759.2,0.64714092]
[1745521693436,0.31777659,1759.4,1759.2,0.64714092]
[1745521693840,0.31777659,1759.4,1759.2,6.33136376]
[1745521694134,0.31777659,1759.6,1759.3,6.46307889]
[1745521694336,0.31777659,1759.6,1759.4,4.943]
[1745521695145,0.29644184,1759.8,1759.4,4.943]
[1745521696418,0.31756237,1759.7,1759.4,4.943]
[1745521697130,0.70618602,1759.8,1759.4,4.943]
[1745521697131,1.08816237,1759.6,1759.4,4.943]
[1745521697994,1.08816237,1759.6,1759.1,6.47350909]
[1745521698154,0.31756237,1759.5,1759.3,4.942]
[1745521704329,0.31756237,1759.5,1759.4,7.00348975]
[1745521704779,0.31756237,1760.0,1759.5,5.68334073]
[1745521704963,0.31756237,1760.0,1759.5,11.36651975]
[1745521705271,0.31756237,1760.0,1759.5,5.68323531]
[1745521705501,1.87576337,1759.9,1759.4,0.7687]
[1745521705642,0.31756237,1759.8,1759.4,0.7687]
[1745521707237,0.31756237,1759.8,1759.3,4.942]
[1745521707646,0.83689494,1759.8,1759.3,4.942]
[1745521707846,0.31756237,1759.7,1759.3,4.942]
[1745521709282,0.31756237,1759.7,1759.5,0.8312]
[1745521709763,0.31756237,1759.8,1759.5,0.8312]
[1745521710563,0.31756237,1759.8,1759.5,6.51453198]
[1745521710765,0.31756237,1759.8,1759.5,7.73435882]
[1745521711868,0.31756237,1760.0,1759.5,7.73427072]
[1745521712266,0.31756237,1760.0,1759.5,2.05102684]
[1745521712686,0.31756237,1760.0,1759.5,2.05102684]
[1745521712881,0.31756237,1759.9,1759.5,2.05102684]
[1745521713066,0.31756237,1759.9,1759.5,7.73435098]
[1745521713273,0.31756237,1759.9,1759.6,0.7734351]
[1745521713593,0.31756237,1759.9,1759.7,4.942]
[1745521713799,0.31756237,1759.9,1759.8,0.8258]
[1745521713958,0.29639507,1760.1,1759.8,6.50826391]
[1745521715491,0.29639507,1760.1,1759.8,6.5081089]
[1745521715665,0.31756237,1760.2,1759.8,6.56488284]
[1745521715866,0.31756237,1760.2,1759.9,0.65648828]
[1745521716079,0.31756237,1760.3,1759.9,0.65648828]
[1745521717016,0.31756237,1760.3,1759.9,6.33858811]
[1745521717596,0.31756237,1760.3,1759.9,0.65648828]
[1745521717999,1.05235856,1760.4,1759.9,0.65648828]
[1745521718797,1.36992093,1760.4,1759.9,0.65648828]
[1745521719505,1.05235856,1760.4,1759.9,0.65648828]
[1745521720224,1.36992093,1760.4,1759.9,0.65648828]
[1745521720725,1.05235856,1760.4,1759.9,0.65648828]
[1745521721221,1.05235856,1760.4,1759.8,0.8258]
[1745521721411,0.7816,1760.3,1759.7,4.942]
[1745521721723,0.31756237,1760.2,1759.7,4.942]
[1745521722021,0.7816,1760.1,1759.7,4.942]
[1745521722222,0.7816,1760.1,1759.6,6.44822023]
[1745521722423,0.7816,1760.1,1759.7,4.939]
[1745521722626,0.7816,1760.1,1759.8,4.939]
[1745521723122,0.7816,1760.1,1759.7,5.73947555]
[1745521723293,0.7816,1760.1,1759.9,4.939]
[1745521724820,1.14206237,1760.3,1759.9,5.73]
[1745521725027,1.14206237,1760.3,1759.9,6.87691574]
[1745521725397,0.31756237,1760.3,1760.0,5.6817306]
[1745521726133,0.29635856,1760.4,1760.0,5.6817306]
[1745521726707,0.29635856,1760.4,1759.9,12.55891703]
[1745521726931,0.29635856,1760.4,1760.0,1.2558917]
[1745521729423,0.29635856,1760.4,1759.9,4.939]
[1745521729424,0.7878,1760.3,1759.9,4.939]
[1745521730540,1.10536237,1760.3,1759.9,4.939]
[1745521731235,1.10536237,1760.3,1759.7,0.8298]
[1745521731416,1.88016337,1760.1,1759.7,4.939]
[1745521732291,7.56167821,1760.1,1759.7,4.939]
[1745521732492,1.07373019,1760.0,1759.7,4.939]
[1745521732914,0.31756237,1760.0,1759.7,4.939]
[1745521733495,0.31814474,1759.9,1759.7,4.939]
[1745521734632,0.31814474,1760.0,1759.7,4.939]
[1745521735235,0.31814474,1759.9,1759.7,4.939]
[1745521735737,0.31814474,1760.0,1759.7,4.939]
[1745521737035,0.31814474,1759.9,1759.7,4.939]
[1745521737606,0.31814474,1760.0,1759.7,4.939]
[1745521737812,1.10612805,1760.0,1759.7,4.939]
[1745521738012,0.31814474,1760.0,1759.7,4.939]
[1745521738425,0.31814474,1759.9,1759.7,4.939]
[1745521738947,0.31814474,1759.9,1759.8,0.05682447]
[1745521739242,0.31814474,1759.9,1759.7,17.1324191]
[1745521739449,0.31814474,1760.1,1759.8,0.8281]
[1745521739653,0.31814474,1760.1,1759.8,6.51035229]
[1745521739850,0.31814474,1760.1,1760.0,0.7689]
[1745521740420,0.31814474,1760.4,1760.0,6.45071818]
[1745521740622,0.31814474,1760.4,1760.1,4.939]
[1745521741446,0.31814474,1760.3,1760.1,4.939]
[1745521742345,0.31814474,1760.4,1760.1,4.939]
[1745521742518,0.31814474,1760.4,1760.1,5.50979]
[1745521743355,0.31814474,1760.3,1760.1,4.939]
[1745521743554,0.7719,1760.2,1760.1,4.939]
[1745521744273,1.09004474,1760.2,1760.1,4.939]
[1745521744923,0.7719,1760.2,1760.1,4.939]
[1745521745639,5.68140783,1760.2,1759.7,17.047]
[1745521745840,1.08146337,1760.0,1759.8,4.939]
[1745521746556,0.31814474,1759.9,1759.8,4.939]
[1745521748161,1.09004474,1759.9,1759.8,4.939]
[1745521748348,6.77218577,1759.9,1759.8,4.939]
[1745521748556,0.7719,1759.7,1759.5,4.939]
[1745521748763,2.79880019,1759.7,1759.5,4.939]
[1745521749454,0.31814474,1759.6,1759.5,4.939]
[1745521751234,0.31814474,1759.8,1759.5,4.939]
[1745521752266,1.11294474,1759.7,1759.5,4.939]
[1745521753337,0.7948,1759.7,1759.5,4.939]
[1745521753861,0.31814474,1759.8,1759.5,5.7718]
[1745521754233,0.31814474,1759.9,1759.5,5.7718]
[1745521754466,1.10544647,1759.9,1759.5,5.7718]
[1745521754667,1.10544647,1759.9,1759.5,4.939]
[1745521754898,0.31814474,1759.8,1759.5,4.939]
[1745521755161,0.7915,1759.7,1759.5,4.939]
[1745521757266,0.6145323,1759.8,1759.5,4.939]
[1745521757500,1.1338657,1759.8,1759.5,4.939]
[1745521758798,0.6145323,1759.8,1759.6,0.7576]
[1745521758972,0.56569978,1759.8,1759.6,0.7576]
[1745521759180,0.26931222,1759.8,1759.6,0.7576]
[1745521759768,0.26931222,1759.8,1759.6,0.81442415]
[1745521760100,0.26931222,1759.8,1759.6,0.7576]
[1745521760303,0.2963733,1760.0,1759.6,2.00374181]
[1745521761910,0.2963733,1760.0,1759.9,1.90816337]
[1745521762107,0.2963733,1760.0,1759.9,12.58511301]
[1745521762413,0.7887,1760.5,1760.0,6.50826137]
[1745521762601,1.08500455,1760.5,1760.0,0.8267]
[1745521763176,1.49350501,1760.5,1760.0,0.8267]
[1745521763373,1.49350501,1760.5,1760.0,6.50850966]
[1745521763573,1.08500455,1760.5,1760.0,6.50850966]
[1745521764411,1.08500455,1760.5,1760.0,0.8267]
[1745521766218,1.08500455,1760.5,1760.0,12.24671625]
[1745521766379,0.29630455,1760.5,1760.1,6.45213469]
[1745521766787,0.29630455,1760.5,1760.1,0.7708]
[1745521766986,0.29630455,1760.5,1760.1,1.41604235]
[1745521767189,0.7523,1760.4,1760.1,0.7708]
[1745521769007,0.7523,1760.4,1759.9,5.7088]
[1745521769212,7.51433433,1760.4,1759.9,5.7088]
[1745521769419,7.51507756,1760.2,1759.7,0.7708]
[1745521769625,1.08146337,1760.0,1759.7,4.937]
[1745521770685,0.2961252,1759.5,1759.4,0.8287]
[1745521770923,0.2961252,1759.5,1759.4,5.7657]
[1745521772200,0.2961252,1759.5,1759.4,4.937]
[1745521772921,0.2961252,1759.5,1759.4,5.4307]
[1745521773689,0.2961252,1759.5,1759.4,4.937]
[1745521774527,0.2961252,1759.5,1759.4,5.7071]
[1745521775032,0.2961252,1759.5,1759.4,11.39085582]
[1745521775731,0.2961252,1759.5,1759.4,12.47231919]
[1745521776140,0.7521,1760.0,1759.5,5.68337262]
[1745521776429,0.7521,1760.0,1759.5,1.81556918]
[1745521777938,1.04845851,1760.0,1759.5,1.81556918]
[1745521779263,6.73028811,1760.0,1759.4,5.7071]
[1745521779645,1.04845851,1760.0,1759.4,5.7071]
[1745521780140,1.36562493,1760.0,1759.4,5.7071]
[1745521782421,1.04845851,1760.0,1759.6,0.8053]
[1745521782620,1.36562493,1760.0,1759.6,0.8053]
[1745521783122,1.36562493,1760.0,1759.6,1.45417279]
[1745521783849,1.36562493,1760.0,1759.4,5.7615]
[1745521784027,1.36562493,1760.0,1759.4,11.44523544]
[1745521784226,1.36562493,1760.0,1759.4,5.7615]
[1745521784563,1.36562493,1760.0,1759.4,5.81832673]
[1745521784751,1.36562493,1760.0,1759.4,11.44520252]
[1745521785052,1.36573007,1760.0,1759.5,1.14452025]
[1745521786662,7.04767796,1760.0,1759.4,5.7615]
[1745521786842,0.31727156,1759.9,1759.4,5.7615]
[1745521788861,0.8138,1759.8,1759.4,4.937]
[1745521792067,1.14977156,1759.9,1759.5,0.8087]
[1745521792232,1.14977156,1759.9,1759.5,6.49213265]
[1745521792560,1.14977156,1759.9,1759.6,0.64921327]
[1745521792766,1.14977156,1759.9,1759.5,0.8087]
[1745521793242,0.8325,1759.9,1759.5,0.8087]
[1745521793831,1.14977156,1759.9,1759.5,0.8087]
[1745521795972,0.31727156,1759.8,1759.5,0.8087]
[1745521797039,0.31727156,1759.8,1759.6,4.936]
[1745521797575,0.8325,1759.9,1759.6,4.936]
[1745521799180,0.29635851,1760.0,1759.7,0.8208]
[1745521799415,0.31856988,1759.9,1759.8,1.08146337]
[1745521800387,0.31856988,1759.9,1759.8,6.76392728]
[1745521800579,0.31856988,1760.2,1759.7,6.50356233]
[1745521800754,0.31856988,1760.2,1759.8,6.3326213]
[1745521800938,0.31856988,1760.2,1759.9,0.05681173]
[1745521801140,0.31856988,1760.2,1760.0,4.936]
[1745521801966,1.06473392,1760.3,1760.0,4.936]
[1745521802470,0.31852765,1760.2,1760.0,4.936]
[1745521803871,0.31852765,1760.1,1760.0,4.936]
[1745521804074,0.31852765,1760.1,1760.0,5.4296]
[1745521805984,0.31852765,1760.1,1760.0,6.2259]
[1745521806644,0.31821869,1760.2,1760.0,6.2259]
[1745521806965,3.8318,1760.0,1759.5,4.6394676]
[1745521807171,1.08146337,1759.9,1759.5,4.6394676]
[1745521807475,0.31821869,1759.8,1759.6,0.7963]
[1745521808043,0.61398892,1759.8,1759.6,0.7963]
[1745521808244,0.29577023,1759.8,1759.6,1.90819894]
[1745521808955,0.61398892,1759.8,1759.6,1.90819894]
[1745521809151,0.61398892,1759.8,1759.4,0.7963]
[1745521809384,0.61398892,1759.8,1759.5,0.0568237]
[1745521809585,0.61398892,1759.8,1759.4,6.53669116]
[1745521809886,0.31821869,1759.7,1759.4,6.53669116]
[1745521810251,0.31821869,1759.7,1759.4,6.53665098]
[1745521810451,0.31821869,1759.7,1759.5,5.68342414]
[1745521810678,0.31821869,1759.7,1759.4,7.62700388]
[1745521810876,0.31821869,1759.7,1759.6,5.68310979]
[1745521811185,0.29577023,1759.8,1759.6,5.68310979]
[1745521811360,0.29577023,1759.8,1759.7,4.935]
[1745521813156,0.61406017,1759.8,1759.7,4.935]
[1745521814392,0.29577023,1759.8,1759.7,4.935]
[1745521814591,0.29577023,1759.8,1759.7,5.6911]
[1745521814897,0.29577023,1759.8,1759.7,6.82850888]
[1745521815269,0.29577023,1759.8,1759.7,12.51129571]
[1745521817113,0.29577023,1759.8,1759.7,11.75519571]
[1745521817397,0.29577023,1759.8,1759.7,4.935]
[1745521817810,0.61398752,1759.8,1759.7,4.935]
[1745521818301,0.61398752,1759.8,1759.7,4.6388169]
[1745521818702,1.69545089,1759.8,1759.7,4.6388169]
[1745521819002,0.61398752,1759.8,1759.7,4.6388169]
[1745521819161,1.69545089,1759.8,1759.4,4.933]
[1745521819363,1.08146337,1759.6,1759.4,4.933]
[1745521819563,0.7965,1759.7,1759.4,4.933]
[1745521819765,0.31821729,1759.6,1759.4,4.933]
[1745521820179,1.39968066,1759.6,1759.4,4.933]
[1745521820816,0.31821729,1759.5,1759.4,4.933]
[1745521822490,0.31821729,1759.6,1759.4,4.933]
[1745521822688,0.31821729,1759.6,1759.4,5.7155]
[1745521822895,0.31821729,1759.6,1759.4,18.22271025]
[1745521823069,0.31821729,1759.6,1759.4,12.53897906]
[1745521823274,0.31821729,1759.6,1759.5,7.60422204]
[1745521823697,0.29577023,1759.8,1759.5,7.60422204]
[1745521824006,0.29577023,1759.8,1759.5,7.60399275]
[1745521824193,0.29577023,1759.8,1759.5,9.5400424]
[1745521824397,0.29577023,1759.8,1759.5,8.45857903]
[1745521825210,0.29577023,1759.8,1759.5,8.45866278]
[1745521825509,0.29577023,1759.8,1759.6,5.68293324]
[1745521825997,0.29577023,1759.8,1759.6,5.73975298]
[1745521826171,0.29577023,1759.8,1759.6,7.15391197]
[1745521826509,0.29577023,1759.8,1759.7,4.934]
[1745521826872,0.29577023,1759.8,1759.7,4.99081973]
[1745521827572,0.29577023,1759.8,1759.7,4.934]
[1745521831119,0.29577023,1759.8,1759.7,10.61678683]
[1745521831339,0.29577023,1759.8,1759.7,13.06085394]
[1745521833334,0.29577023,1759.8,1759.7,6.56396711]
[1745521833515,0.29577023,1759.8,1759.7,4.934]
[1745521839547,0.29577023,1759.8,1759.7,4.933]
[1745521839854,1.06237023,1759.8,1759.7,4.933]
[1745521840352,1.38110353,1759.8,1759.7,4.933]
[1745521842143,7.063679,1759.8,1759.5,4.933]
[1745521842367,0.8148,1759.6,1759.4,4.933]
[1745521842548,1.08146337,1759.5,1759.2,4.933]
[1745521842748,0.3187333,1759.4,1759.2,4.933]
[1745521842940,0.61463706,1759.4,1759.2,4.933]
[1745521844034,0.3187333,1759.3,1759.2,4.933]
[1745521846074,2.18019667,1759.3,1759.2,4.933]
[1745521846251,2.9961916,1759.3,1759.2,4.933]
[1745521846577,2.18019667,1759.3,1759.2,4.933]
[1745521846778,0.78,1759.2,1758.5,6.51742405]
[1745521846936,1.86146337,1759.2,1758.8,4.932]
[1745521847975,0.3187333,1759.1,1758.8,4.932]
[1745521850881,5.18019667,1759.2,1758.8,4.932]
[1745521851080,0.51801967,1759.1,1758.8,4.932]
[1745521852400,7.58971537,1759.0,1758.5,5.7147]
[1745521852755,7.58971537,1759.0,1758.5,4.933]
[1745521853400,1.90466337,1759.0,1758.5,4.933]
[1745521853799,0.8103,1758.7,1758.5,4.933]
[1745521854354,0.8103,1758.9,1758.5,4.933]
[1745521854691,1.29947634,1758.9,1758.5,4.933]
[1745521854994,1.76064055,1759.1,1758.6,0.8132]
[1745521855365,2.84210392,1759.1,1758.6,0.8132]
[1745521855581,0.8103,1759.0,1758.5,4.933]
[1745521856278,6.49535649,1759.0,1758.5,4.933]
[1745521856662,0.8103,1759.0,1758.5,4.933]
[1745521856993,3.8103,1759.0,1758.5,4.933]
[1745521857295,0.38103,1758.9,1758.5,4.933]
[1745521857878,7.14790038,1758.9,1758.5,4.933]
[1745521858080,0.67749746,1758.9,1758.5,4.933]
[1745521858393,0.29646746,1758.9,1758.5,4.933]
[1745521859880,0.29646746,1758.9,1758.6,0.7875]
[1745521861164,0.29646746,1758.9,1758.6,0.84435392]
[1745521861668,1.10950376,1759.4,1758.7,6.51431263]
[1745521861873,0.29643101,1759.3,1758.7,6.51431263]
[1745521862058,0.73702449,1759.3,1758.7,6.57115943]
[1745521862264,0.73702449,1759.3,1758.7,6.51431263]
[1745521862464,0.73702449,1759.3,1758.7,6.57115944]
[1745521863100,0.73702449,1759.3,1759.0,5.68500068]
[1745521863101,0.6134134,1759.3,1759.0,5.68500068]
[1745521863331,0.29583671,1759.2,1759.1,5.7624]
[1745521865098,0.29583671,1759.2,1759.1,4.934]
[1745521867621,0.29583671,1759.2,1758.9,0.7716]
[1745521867826,7.06195025,1759.2,1758.8,4.934]
[1745521867990,1.46039503,1759.1,1758.8,4.934]
[1745521868390,1.77737742,1759.1,1758.8,4.934]
[1745521868625,1.07118239,1759.1,1758.8,4.934]
[1745521869714,0.31698239,1759.0,1758.8,4.934]
[1745521871036,0.31698239,1759.1,1758.8,4.934]
[1745521871530,1.06938239,1759.1,1758.8,4.934]
[1745521872038,0.31698239,1759.0,1758.8,4.934]
[1745521872611,1.14324901,1759.0,1758.8,4.934]
[1745521872993,0.31698239,1758.9,1758.8,4.934]
[1745521873366,0.31698239,1758.9,1758.8,5.7459]
[1745521873896,0.31698239,1759.1,1758.8,5.7459]
[1745521874347,0.31698239,1759.1,1758.9,0.05685073]
[1745521874511,0.31698239,1759.1,1758.8,11.43147613]
[1745521874730,0.31698239,1759.1,1758.9,0.05684447]
[1745521874947,0.31698239,1759.1,1759.0,6.46874832]
[1745521875152,0.29583671,1759.2,1759.0,6.52558725]
[1745521875639,0.29583671,1759.2,1759.0,0.7837]
[1745521876039,0.6128191,1759.2,1759.0,0.7837]
[1745521876742,0.6128191,1759.2,1759.0,1.99910561]
[1745521877053,0.29583671,1759.2,1759.0,1.99910561]
[1745521877444,0.29583671,1759.2,1759.0,7.6841446]
[1745521877631,0.29583671,1759.2,1759.0,1.99910561]
[1745521879051,0.29583671,1759.2,1759.0,7.6841336]
[1745521879255,0.29583671,1759.2,1759.1,7.2678772]
[1745521879753,0.29583671,1759.2,1759.1,10.2678772]
[1745521880759,0.31698239,1759.8,1759.6,0.7544]
[1745521880956,0.31698239,1759.8,1759.7,4.931]
[1745521881126,0.31698239,1759.8,1759.7,4.98782316]
[1745521881330,0.61306744,1759.8,1759.7,4.931]
[1745521881756,0.29608505,1759.8,1759.7,4.931]
[1745521885159,1.37754842,1759.8,1759.7,4.931]
[1745521885335,2.11318572,1759.8,1759.7,4.931]
[1745521886957,3.20366811,1759.8,1759.7,4.931]
[1745521887926,8.88613202,1759.8,1759.7,4.931]
[1745521888253,3.20366811,1759.8,1759.7,4.931]
[1745521890670,2.12220474,1759.8,1759.7,4.931]
[1745521891431,1.80522235,1759.8,1759.7,4.931]
[1745521892074,2.12301378,1759.8,1759.7,4.931]
[1745521893578,2.12301378,1759.8,1758.9,4.931]
[1745521893579,0.275,1759.2,1758.9,4.931]
[1745521894274,1.08146337,1759.1,1758.9,4.931]
[1745521894445,1.51078241,1759.1,1758.9,4.931]
[1745521894641,5.63657971,1759.2,1758.9,4.931]
[1745521895174,0.29664561,1759.1,1758.9,4.931]
[1745521895670,0.29664561,1759.1,1758.9,5.6943]
[1745521897352,0.29664561,1759.1,1758.9,4.931]
[1745521904198,0.29664561,1759.1,1758.6,5.68607069]
[1745521904199,6.49966962,1758.9,1758.6,4.931]
[1745521904353,1.08146337,1758.8,1758.6,4.931]
[1745521905606,1.3992548,1758.8,1758.6,4.931]
[1745521906705,0.31779143,1758.8,1758.6,4.931]
[1745521907094,0.42339809,1758.8,1758.6,4.931]
[1745521907293,0.31779143,1758.9,1758.7,0.763]
[1745521907690,0.31779143,1758.9,1758.7,0.488]
[1745521908295,0.29589442,1758.9,1758.7,0.488]
[1745521908815,0.29589442,1758.9,1758.7,1.0299]
[1745521908978,0.29589442,1758.9,1758.7,6.71581642]
[1745521909672,0.29589442,1758.9,1758.7,1.0299]
[1745521910077,0.29589442,1758.9,1758.7,0.488]
[1745521912583,0.29589442,1758.9,1758.8,0.0568499]
[1745521912783,0.29589442,1758.9,1758.7,0.488]
[1745521914300,0.29589442,1758.9,1758.6,5.7217]
[1745521914499,0.29589442,1758.9,1758.6,4.931]
[1745521915338,1.45465693,1758.9,1758.6,4.931]
[1745521915836,0.59257183,1758.9,1758.6,4.931]
[1745521915985,0.91036326,1758.9,1758.6,4.931]
[1745521917927,7.54918755,1758.8,1758.6,4.931]
[1745521918142,6.46781808,1758.7,1758.3,21.982]
[1745521918435,6.78560951,1758.7,1758.3,21.982]
[1745521918594,0.67856095,1758.6,1758.3,21.982]
[1745521919088,0.99635238,1758.6,1758.3,21.982]
[1745521919288,0.31779143,1758.6,1758.3,21.982]
[1745521920514,0.31779143,1758.6,1758.4,0.7995]
[1745521920836,0.31779143,1758.6,1758.4,0.85635982]
[1745521921707,6.51061809,1758.7,1758.3,21.982]
[1745521921917,0.65106181,1758.6,1758.3,21.982]
[1745521922108,0.8245,1758.7,1758.3,21.982]
[1745521922742,0.31779143,1758.6,1758.3,21.982]
[1745521925944,0.31779143,1758.5,1758.3,21.982]
[1745521927132,0.4336108,1758.5,1758.3,21.982]
[1745521927344,0.31779143,1758.6,1758.3,21.982]
[1745521927714,0.31779143,1758.5,1758.3,21.982]
[1745521928152,0.31779143,1758.5,1758.3,4.931]
[1745521928647,0.61352827,1758.5,1758.2,1.1930107]
[1745521928851,0.7606,1758.4,1758.2,0.4075107]
[1745521929345,6.4475929,1758.4,1758.2,0.4075107]
[1745521929645,7.43336232,1758.3,1758.2,1e-08]
[1745521929846,10.98336232,1758.3,1758.2,1e-08]
[1745521930147,0.7835,1757.8,1757.1,11.39818475]
[1745521930645,5.68973453,1757.6,1757.1,5.7071]
[1745521931045,6.00752596,1757.6,1757.1,0.7751]
[1745521931354,1.3842526,1757.5,1757.1,5.7071]
[1745521931509,1.81321513,1757.5,1757.1,4.932]
[1745521931716,7.50311608,1757.5,1757.1,4.932]
[1745521932019,1.81321513,1757.5,1757.1,4.932]
[1745521935152,0.42896253,1757.5,1757.1,10.62309597]
[1745521935351,0.7736,1757.7,1757.1,10.62309597]
[1745521935917,1.19841735,1757.7,1757.1,10.62309597]
[1745521936862,1.19841735,1757.7,1757.2,6.49389295]
[1745521937015,0.42481735,1757.7,1757.2,6.4939205]
[1745521937350,0.29682083,1757.8,1757.3,6.33992256]
[1745521937719,1.91046337,1757.7,1757.1,4.932]
[1745521939557,2.32922104,1757.7,1757.1,4.932]
[1745521939918,2.32922104,1757.7,1757.1,10.6231652]
[1745521940252,2.32922104,1757.7,1757.1,4.932]
[1745521940853,2.32922104,1757.7,1757.1,10.62315732]
[1745521941060,3.16074102,1757.7,1757.1,10.62315732]
[1745521943065,0.41875767,1757.7,1757.4,6.49678064]
[1745521943365,0.29682083,1757.8,1757.5,4.933]
[1745521947765,0.71660443,1757.8,1757.5,4.933]
[1745521948767,0.71660443,1757.8,1757.5,10.62285623]
[1745521948768,0.29682083,1757.8,1757.5,10.62285623]
[1745521948938,0.29608681,1757.7,1757.5,4.933]